bitfinex/quotes_ETHUSD_20250810
["timestamp","ask_amount","ask_price","bid_price","bid_amount"]
[1754821260617,0.83760001,4223.0,4222.9,0.04]
[1754821261119,3.20558485,4223.0,4222.9,0.04]
[1754821261297,3.20561571,4223.0,4222.5,0.001]
[1754821261521,2.36820326,4222.7,4222.5,0.001]
[1754821261707,3.7504,4222.6,4222.5,0.001]
[1754821261905,4.547,4222.6,4222.5,0.001]
[1754821265533,6.91520916,4222.6,4222.5,0.001]
[1754821265727,4.547,4222.6,4222.5,0.001]
[1754821265925,6.91520916,4222.6,4222.5,0.001]
[1754821267637,7.0934822,4222.6,4222.5,0.001]
[1754821271640,11.15208377,4222.6,4222.5,0.001]
[1754821272434,11.15208377,4222.6,4222.5,1e-08]
[1754821272746,2.36826524,4222.5,4222.4,1e-08]
[1754821272964,7.22346681,4222.5,4222.4,1e-08]
[1754821273256,7.44415073,4222.5,4222.4,1e-08]
[1754821273422,8.29108064,4222.5,4222.4,1e-08]
[1754821274062,8.87435807,4222.5,4222.4,1e-08]
[1754821274228,8.65367415,4222.5,4222.4,1e-08]
[1754821274931,8.87412231,4222.5,4222.4,1e-08]
[1754821275137,8.0271924,4222.5,4222.4,1e-08]
[1754821276358,2.36871402,4221.7,4221.6,0.001]
[1754821276573,6.00071402,4221.7,4221.6,0.001]
[1754821276759,9.62771559,4221.7,4221.6,0.001]
[1754821277757,10.42991559,4221.7,4221.6,1e-08]
[1754821280046,9.62771559,4221.7,4221.6,1e-08]
[1754821280599,9.62771559,4221.7,4221.6,0.46010001]
[1754821281360,5.48711402,4221.7,4221.6,0.46010001]
[1754821281565,6.11911402,4221.7,4221.6,0.93340001]
[1754821281761,3.7514,4221.7,4221.6,0.93340001]
[1754821282190,3.7504,4221.7,4221.6,0.93340001]
[1754821282563,6.11911402,4221.7,4221.6,0.93340001]
[1754821282996,9.11911402,4221.7,4221.6,1e-08]
[1754821283198,9.92131402,4221.7,4221.6,1e-08]
[1754821283395,10.43017372,4221.7,4221.6,1e-08]
[1754821283694,10.11347372,4221.7,4221.6,1e-08]
[1754821284086,9.62797372,4221.7,4221.6,1e-08]
[1754821286096,9.50957372,4221.7,4221.6,1e-08]
[1754821286886,10.86177372,4221.7,4221.6,1e-08]
[1754821288406,10.35291402,4221.7,4221.6,1e-08]
[1754821288720,9.51009145,4221.7,4221.6,1e-08]
[1754821289093,10.31229145,4221.7,4221.6,1e-08]
[1754821289480,9.99559145,4221.7,4221.6,1e-08]
[1754821289676,9.51009145,4221.7,4221.6,1e-08]
[1754821290167,10.06009145,4221.7,4221.6,1e-08]
[1754821290366,10.54559145,4221.7,4221.6,1e-08]
[1754821290585,10.86229145,4221.7,4221.6,1e-08]
[1754821290869,10.06009145,4221.7,4221.6,1e-08]
[1754821293590,9.51009145,4221.7,4221.6,1e-08]
[1754821293897,9.51009145,4221.7,4221.6,0.46010001]
[1754821294198,9.00071402,4221.7,4221.6,0.93340001]
[1754821295206,9.50881719,4221.7,4221.6,0.93340001]
[1754821295896,9.00071402,4221.7,4221.6,0.93340001]
[1754821296113,9.11911402,4221.7,4221.6,0.93340001]
[1754821296414,9.62750701,4221.7,4221.6,1e-08]
[1754821298913,9.62750701,4221.7,4221.6,0.93340001]
[1754821300325,10.26387282,4221.7,4221.6,0.93340001]
[1754821300934,9.62750701,4221.7,4221.6,0.93340001]
[1754821301089,2.99550701,4221.7,4221.6,0.93340001]
[1754821301295,6.11911402,4221.7,4221.6,0.93340001]
[1754821301514,6.62750701,4221.7,4221.6,0.93340001]
[1754821302421,4.25879299,4221.7,4221.6,0.93340001]
[1754821302722,3.7504,4221.7,4221.6,0.93340001]
[1754821303016,6.11911402,4221.7,4221.6,0.93340001]
[1754821303389,6.11911402,4221.7,4221.6,0.46010001]
[1754821303594,6.62938333,4221.7,4221.6,0.46010001]
[1754821303791,6.62878783,4221.7,4221.6,1e-08]
[1754821308011,6.74941655,4221.7,4221.6,1e-08]
[1754821308214,10.38578236,4221.7,4221.6,1e-08]
[1754821308530,11.30193468,4221.7,4221.6,1e-08]
[1754821309100,11.4346607,4221.7,4221.6,1e-08]
[1754821309346,1.27039486,4221.8,4221.6,1e-08]
[1754821309508,0.094865,4222.0,4221.7,2.48711402]
[1754821309845,0.002,4223.5,4222.8,2.36804929]
[1754821310007,3.691,4223.2,4222.9,0.34010225]
[1754821310197,3.1682,4223.2,4223.1,2.36792877]
[1754821310397,3.1682,4223.2,4223.1,2.86043412]
[1754821310626,0.002,4223.5,4223.3,2.36781663]
[1754821310829,0.002,4223.5,4223.3,2.58951888]
[1754821311500,3.694,4223.4,4223.3,2.58951888]
[1754821316736,3.694,4223.4,4223.3,2.70791888]
[1754821316932,3.694,4223.4,4223.3,3.31367799]
[1754821317307,3.694,4223.4,4223.3,3.31193235]
[1754821320531,0.002,4223.8,4223.3,6.86193235]
[1754821320723,0.002,4223.8,4223.7,2.91759239]
[1754821321032,0.002,4223.8,4223.7,3.42930824]
[1754821322329,0.002,4223.8,4223.7,3.42898787]
[1754821322905,0.002,4223.8,4223.7,3.52374587]
[1754821325349,1e-08,4224.7,4224.0,2.91742424]
[1754821325505,0.04,4225.9,4225.8,2.91641582]
[1754821325843,0.04,4226.9,4225.9,3.55]
[1754821326024,0.04,4226.9,4226.1,0.55]
[1754821326207,0.04,4226.9,4226.4,2.36607987]
[1754821326534,0.04,4226.9,4226.8,2.91585596]
[1754821326737,0.04,4226.9,4226.8,3.98563261]
[1754821327324,0.04,4226.9,4226.8,3.43563261]
[1754821328342,0.04,4226.9,4226.8,4.00929116]
[1754821328574,0.04,4226.9,4226.8,7.00929116]
[1754821328847,0.04,4226.9,4226.8,6.98563261]
[1754821329222,1e-08,4226.9,4226.8,6.98563261]
[1754821330027,1e-08,4226.9,4226.8,10.68363261]
[1754821330222,1e-08,4226.9,4226.8,10.68463261]
[1754821330718,1e-08,4226.9,4226.8,10.80303261]
[1754821331317,1e-08,4226.9,4226.8,7.10403261]
[1754821331731,1e-08,4226.9,4226.8,6.55403261]
[1754821332055,1e-08,4226.9,4226.8,1.18817665]
[1754821332222,1e-08,4226.9,4226.8,0.33803624]
[1754821333529,1e-08,4226.9,4226.8,2.7038922]
[1754821333847,1e-08,4226.9,4226.8,6.25227551]
[1754821334049,1e-08,4226.9,4226.8,3.21801955]
[1754821334253,1e-08,4226.9,4226.8,0.33641955]
[1754821334454,1e-08,4226.9,4226.8,0.66166367]
[1754821334634,1e-08,4226.9,4226.8,0.33641955]
[1754821335229,1e-08,4226.9,4226.8,2.70227551]
[1754821335432,1e-08,4226.9,4226.8,3.27593406]
[1754821335633,1e-08,4226.9,4226.8,3.25227551]
[1754821336259,3.698,4228.5,4227.8,2.36529637]
[1754821336461,0.9264,4228.6,4227.8,6.47478308]
[1754821336761,0.002,4228.2,4227.8,7.02478308]
[1754821339571,0.002,4228.2,4227.9,3.55]
[1754821339743,0.002,4228.2,4228.1,5.91512854]
[1754821339930,0.002,4228.2,4228.1,6.25154809]
[1754821340247,0.04,4228.9,4228.8,5.91473704]
[1754821340469,0.04,4228.9,4228.8,6.25115659]
[1754821342036,0.04,4228.9,4228.8,0.33641955]
[1754821342037,0.9711,4228.9,4228.8,0.33641955]
[1754821344173,3.33578112,4228.9,4228.8,0.33641955]
[1754821344378,0.9711,4228.9,4227.8,2.36524638]
[1754821344587,0.9711,4228.9,4227.5,3.0]
[1754821344588,2.36484888,4228.6,4228.5,0.1184]
[1754821344874,3.29594888,4228.6,4228.5,0.1184]
[1754821345479,0.9311,4228.6,4228.5,0.1184]
[1754821345957,3.733,4228.9,4228.8,2.36473704]
[1754821345958,0.04,4228.9,4228.8,2.36473704]
[1754821346154,0.04,4228.9,4228.8,2.83769211]
[1754821346546,0.04,4228.9,4228.8,3.38769211]
[1754821347549,0.9711,4228.9,4228.7,0.4871]
[1754821347889,0.9711,4228.9,4226.8,2.36580324]
[1754821347890,0.9311,4228.8,4227.6,3.0]
[1754821348050,0.04,4228.9,4228.3,3.70998]
[1754821348051,0.9311,4228.7,4228.3,3.70998]
[1754821348253,2.36490481,4228.5,4227.8,2.3652858]
[1754821348482,0.4851,4228.8,4227.8,0.47307469]
[1754821348686,0.4851,4228.8,4227.3,3.694]
[1754821348687,0.446,4228.4,4228.2,2.3650724]
[1754821348884,0.446,4228.3,4228.1,2.36512562]
[1754821349180,0.446,4228.2,4228.0,0.710027]
[1754821349384,0.9311,4228.1,4228.0,0.710027]
[1754821349689,0.9311,4228.1,4227.6,0.710095]
[1754821349985,0.9311,4228.1,4226.5,6.05902318]
[1754821349986,0.9311,4228.0,4226.5,6.05902318]
[1754821350288,0.9311,4227.9,4227.3,2.36556863]
[1754821350495,2.81130135,4227.8,4227.0,2.36569111]
[1754821350657,0.446,4227.7,4227.0,0.84416805]
[1754821350855,0.446,4227.7,4226.9,0.71014]
[1754821351156,0.446,4227.7,4227.2,2.3656058]
[1754821351457,0.9311,4227.6,4227.4,2.36551076]
[1754821351794,0.9311,4227.6,4227.4,2.36547822]
[1754821351949,0.446,4227.6,4227.5,2.36546422]
[1754821352575,0.9311,4228.0,4227.6,2.36540428]
[1754821352774,0.446,4227.9,4227.7,0.02365352]
[1754821352988,0.9311,4228.0,4226.9,0.71014]
[1754821353147,0.9311,4227.9,4226.9,0.71014]
[1754821353349,2.36541292,4227.6,4226.9,0.71014]
[1754821353549,2.36541292,4227.6,4226.1,2.36624618]
[1754821353550,0.9311,4227.5,4225.6,2.40648411]
[1754821353753,0.9311,4227.5,4226.1,0.710319]
[1754821354053,2.36573386,4227.1,4226.1,0.710319]
[1754821354255,6.98986188,4227.0,4226.2,2.36614979]
[1754821354478,0.9311,4226.9,4226.2,2.36614979]
[1754821354685,0.9311,4226.8,4226.3,2.36609499]
[1754821354890,0.9311,4226.7,4226.3,2.36609499]
[1754821355066,0.9311,4226.7,4226.0,2.36724865]
[1754821355388,0.446,4226.6,4226.2,2.36618308]
[1754821355610,0.9311,4226.6,4226.3,2.36613026]
[1754821355788,3.693,4227.0,4226.4,0.1184]
[1754821355789,0.9311,4226.5,4226.4,0.1184]
[1754821356499,0.9311,4226.5,4226.4,0.33901808]
[1754821357909,3.8114,4227.0,4226.7,2.36588026]
[1754821357910,3.693,4227.0,4226.7,2.36588026]
[1754821358111,0.9311,4226.9,4226.8,0.22061808]
[1754821358309,3.29689999,4226.9,4226.8,0.22061808]
[1754821358537,3.41529999,4226.9,4226.8,0.22061808]
[1754821359513,1.0495,4226.9,4226.8,0.22061808]
[1754821359719,4.7405,4226.9,4226.8,0.22061808]
[1754821360910,4.6221,4226.9,4226.8,0.22061808]
[1754821361885,4.6221,4226.9,4226.8,0.33901808]
[1754821362394,4.6221,4226.9,4226.8,0.1184]
[1754821362591,4.6221,4226.9,4226.3,0.001]
[1754821362793,0.446,4226.8,4226.5,0.1184]
[1754821363120,0.9311,4226.7,4226.5,0.1184]
[1754821363611,0.446,4226.6,4226.5,2.48442086]
[1754821364161,3.691,4226.9,4226.6,2.36593114]
[1754821364519,4.137,4226.9,4226.6,2.36593114]
[1754821364710,0.446,4226.8,4226.5,2.48441214]
[1754821364910,3.691,4226.9,4226.5,2.48441214]
[1754821365112,0.446,4226.7,4226.5,0.1184]
[1754821365411,0.446,4226.7,4226.6,2.36596791]
[1754821365921,3.691,4226.9,4226.7,2.36590295]
[1754821366247,4.137,4226.9,4226.7,2.36590295]
[1754821366551,4.137,4226.9,4226.3,0.001]
[1754821366552,0.9311,4226.8,4226.3,0.001]
[1754821366878,0.446,4226.8,4226.6,2.36596196]
[1754821367148,3.691,4226.9,4226.4,0.1184]
[1754821367309,0.446,4227.2,4226.7,0.1184]
[1754821367510,3.684,4226.8,4226.7,2.36591194]
[1754821367952,3.684,4226.8,4226.7,2.48431194]
[1754821368942,4.6104,4226.8,4226.7,0.1184]
[1754821369252,4.6104,4226.8,4226.5,0.1184]
[1754821369449,3.684,4226.8,4226.5,0.1184]
[1754821369749,0.9264,4226.7,4226.5,0.1184]
[1754821370054,2.36599119,4226.6,4226.3,0.001]
[1754821370355,0.9264,4226.6,4226.3,0.001]
[1754821370672,0.9264,4226.5,4226.3,0.001]
[1754821370809,3.684,4226.4,4226.3,0.001]
[1754821371007,4.6104,4226.4,4226.3,0.001]
[1754821371233,4.7288,4226.4,4226.3,0.001]
[1754821371446,7.09487987,4226.4,4226.3,0.001]
[1754821377041,5.09487987,4226.4,4226.3,0.001]
[1754821380162,2.7288,4226.4,4226.3,0.001]
[1754821380366,5.09487987,4226.4,4226.3,0.001]
[1754821381559,2.36624784,4226.1,4226.0,0.001]
[1754821381738,2.36647182,4225.7,4225.6,0.041]
[1754821381942,6.04347182,4225.7,4225.6,0.041]
[1754821382141,6.96987182,4225.7,4225.6,0.041]
[1754821384845,9.96987182,4225.7,4225.6,0.041]
[1754821385777,10.51987182,4225.7,4225.6,0.041]
[1754821386582,10.51987182,4225.7,4225.6,1e-08]
[1754821388147,13.01287182,4225.7,4225.6,1e-08]
[1754821388382,13.51925705,4225.7,4225.6,1e-08]
[1754821388881,5.91680788,4225.1,4225.0,1e-08]
[1754821389061,9.59380788,4225.1,4225.0,1e-08]
[1754821389376,10.52020788,4225.1,4225.0,1e-08]
[1754821390278,9.97020788,4225.1,4225.0,1e-08]
[1754821391464,10.08860788,4225.1,4225.0,1e-08]
[1754821391980,9.62320788,4225.1,4225.0,1e-08]
[1754821392201,6.16220788,4225.1,4225.0,1e-08]
[1754821392489,7.08860788,4225.1,4225.0,1e-08]
[1754821393256,10.08860788,4225.1,4225.0,1e-08]
[1754821393457,10.63860788,4225.1,4225.0,1e-08]
[1754821398198,10.97288478,4225.1,4225.0,1e-08]
[1754821398499,11.47902523,4225.1,4225.0,1e-08]
[1754821398882,2.36753634,4223.8,4223.7,0.001]
[1754821399195,6.15793634,4223.8,4223.7,0.001]
[1754821400878,3.7904,4223.8,4223.7,0.001]
[1754821401512,6.15793634,4223.8,4223.7,0.001]
[1754821401666,3.7904,4223.8,4223.7,0.001]
[1754821402287,3.7904,4223.8,4223.7,0.339]
[1754821402687,3.7904,4223.8,4223.7,2.70819239]
[1754821402888,3.7904,4223.8,4223.7,3.21977866]
[1754821403080,3.672,4223.8,4223.7,3.21977866]
[1754821404401,3.672,4223.8,4223.7,0.001]
[1754821404402,6.15793634,4223.8,4223.7,0.001]
[1754821404572,6.58843634,4223.8,4223.7,0.001]
[1754821404771,7.07383634,4223.8,4223.7,0.001]
[1754821406994,10.07383634,4223.8,4223.7,0.001]
[1754821407684,11.13153985,4223.8,4223.7,0.001]
[1754821409296,2.91759239,4223.7,4223.6,1e-08]
[1754821409496,4.3411959,4223.7,4223.6,1e-08]
[1754821409817,4.97697569,4223.7,4223.6,1e-08]
[1754821411417,4.3411959,4223.7,4223.6,1e-08]
[1754821411621,4.97697569,4223.7,4223.6,1e-08]
[1754821413619,4.3411959,4223.7,4223.6,1e-08]
[1754821419513,7.3411959,4223.7,4223.6,1e-08]
[1754821420243,8.18067332,4223.7,4223.6,1e-08]
[1754821421238,7.3411959,4223.7,4223.6,1e-08]
[1754821421416,8.18067332,4223.7,4223.6,1e-08]
[1754821422237,7.3411959,4223.7,4223.6,1e-08]
[1754821427435,6.4252959,4223.7,4223.6,1e-08]
[1754821428051,5.8752959,4223.7,4223.6,1e-08]
[1754821428259,9.6506959,4223.7,4223.6,1e-08]
[1754821428468,10.2006959,4223.7,4223.6,1e-08]
[1754821428650,2.9936959,4223.7,4223.6,1e-08]
[1754821428826,0.1184,4223.7,4223.6,0.33960001]
[1754821429030,3.7774,4223.7,4223.6,0.33960001]
[1754821433774,3.7774,4223.7,4223.6,0.33800001]
[1754821437283,3.7774,4223.7,4223.6,1e-08]
[1754821438351,6.14499239,4223.7,4223.6,1e-08]
[1754821439083,3.7774,4223.7,4223.6,1e-08]
[1754821440104,6.14499239,4223.7,4223.6,1e-08]
[1754821440455,3.7774,4223.7,4223.6,1e-08]
[1754821440674,7.05219239,4223.7,4223.6,1e-08]
[1754821441160,7.60219239,4223.7,4223.6,1e-08]
[1754821441961,7.12029239,4223.7,4223.6,1e-08]
[1754821442295,7.59419239,4223.7,4223.6,1e-08]
[1754821445514,7.67629835,4223.7,4223.6,1e-08]
[1754821445812,11.18514197,4223.7,4223.6,1e-08]
[1754821446029,11.51932545,4223.7,4223.6,1e-08]
[1754821446229,11.88034299,4223.7,4223.6,1e-08]
[1754821448440,11.51932545,4223.7,4223.6,1e-08]
[1754821448598,11.18514197,4223.7,4223.6,1e-08]
[1754821456735,11.82123005,4223.7,4223.6,1e-08]
[1754821457245,11.18514197,4223.7,4223.6,1e-08]
[1754821459349,13.67814197,4223.7,4223.6,1e-08]
[1754821459754,11.18514197,4223.7,4223.6,1e-08]
[1754821461057,11.40594948,4223.7,4223.6,1e-08]
[1754821462171,12.04203756,4223.7,4223.6,1e-08]
[1754821466434,11.40594948,4223.7,4223.6,1e-08]
[1754821467257,12.1011505,4223.7,4223.6,1e-08]
[1754821467622,12.1011505,4223.7,4223.1,0.001]
[1754821467623,3.55,4223.6,4222.8,1e-08]
[1754821467820,3.55,4223.6,4222.6,1e-08]
[1754821467821,0.55,4222.8,4222.6,1e-08]
[1754821468158,0.55,4222.8,4220.6,0.1584]
[1754821468159,2.36837742,4222.3,4222.2,1e-08]
[1754821468361,10.48157388,4222.3,4222.2,1e-08]
[1754821468515,10.48157388,4222.3,4220.6,0.0416]
[1754821468516,2.36871402,4221.7,4221.6,1e-08]
[1754821468719,16.06531504,4221.7,4221.6,1e-08]
[1754821469034,17.00588322,4221.7,4221.6,1e-08]
[1754821469449,16.10005557,4221.7,4221.6,1e-08]
[1754821469644,15.87895764,4221.7,4221.6,1e-08]
[1754821470254,16.78485764,4221.7,4221.6,1e-08]
[1754821471017,16.78485764,4221.7,4221.6,0.00100001]
[1754821472038,16.33155764,4221.7,4221.6,0.00100001]
[1754821472663,15.25271402,4221.7,4221.6,0.00100001]
[1754821472837,15.37111402,4221.7,4221.6,0.00100001]
[1754821473733,15.62830219,4221.7,4221.6,0.00100001]
[1754821474656,9.06158817,4221.7,4221.6,0.00100001]
[1754821474856,15.07830219,4221.7,4221.6,0.33900001]
[1754821475977,15.07830219,4221.7,4221.6,0.34060001]
[1754821475978,5.982249,4221.7,4221.6,0.34060001]
[1754821476251,9.630249,4221.7,4221.6,0.34060001]
[1754821476453,5.982249,4221.7,4221.6,0.34060001]
[1754821476651,9.334,4221.7,4221.6,2.70937014]
[1754821476827,9.334,4221.7,4221.6,3.21719917]
[1754821478430,9.334,4221.7,4221.6,0.84842904]
[1754821478851,9.334,4221.7,4221.6,0.34060001]
[1754821480044,9.334,4221.7,4221.6,2.70937014]
[1754821480637,3.648,4221.7,4221.6,0.45900001]
[1754821480927,3.648,4221.7,4221.6,2.82777014]
[1754821483255,3.648,4221.7,4221.6,0.11940001]
[1754821483424,3.648,4221.7,4221.6,0.00100001]
[1754821485861,3.647,4221.7,4221.6,0.00100001]
[1754821488068,6.46621402,4221.7,4221.6,0.00100001]
[1754821488244,6.93001402,4221.7,4221.6,0.00100001]
[1754821490173,10.48001402,4221.7,4221.6,0.00100001]
[1754821490359,10.48001402,4221.7,4221.6,1e-08]
[1754821490560,10.48001402,4221.7,4221.1,0.001]
[1754821490561,2.91899459,4221.2,4221.1,0.001]
[1754821490766,11.72439459,4221.2,4221.1,0.001]
[1754821491061,16.28569459,4221.2,4221.1,0.001]
[1754821498388,16.28569459,4221.2,4221.1,1e-08]
[1754821498749,16.28569459,4221.2,4220.3,1e-08]
[1754821498750,2.36905072,4221.1,4220.3,1e-08]
[1754821498967,2.36905072,4221.1,4219.3,0.001]
[1754821498968,2.36983671,4219.7,4219.3,0.001]
[1754821499179,6.13623671,4219.7,4219.3,0.001]
[1754821499460,10.05053671,4219.7,4219.3,0.001]
[1754821499759,10.60053671,4219.7,4219.3,0.001]
[1754821500552,6.03823671,4219.7,4219.3,0.001]
[1754821500758,9.68623671,4219.7,4219.3,0.001]
[1754821501093,9.13623671,4219.7,4219.3,0.001]
[1754821501450,10.60053671,4219.7,4219.3,0.001]
[1754821501850,10.13673671,4219.7,4219.3,0.001]
[1754821502185,10.60053671,4219.7,4219.3,0.001]
[1754821502764,2.37000521,4219.4,4219.3,0.001]
[1754821503059,5.48840521,4219.4,4219.3,0.001]
[1754821503263,10.60070521,4219.4,4219.3,0.001]
[1754821503883,10.13690521,4219.4,4219.3,0.001]
[1754821504588,6.649,4219.4,4219.3,0.001]
[1754821504796,3.7674,4219.4,4219.3,0.001]
[1754821504992,3.7674,4219.4,4219.3,0.339]
[1754821505585,3.7674,4219.4,4219.3,2.71066138]
[1754821505889,3.7674,4219.4,4219.3,3.21884862]
[1754821506095,3.7674,4219.4,4219.3,0.84878724]
[1754821506289,3.7674,4219.4,4219.3,0.3406]
[1754821506494,3.7674,4219.4,4219.3,0.339]
[1754821507369,3.7674,4219.4,4219.3,0.001]
[1754821508793,3.7674,4219.4,4219.3,0.339]
[1754821508994,0.1184,4219.4,4219.3,2.70906138]
[1754821509202,3.7674,4219.4,4219.3,3.21724296]
[1754821509395,0.1184,4219.4,4219.3,3.21884296]
[1754821509606,3.7674,4219.4,4219.3,3.21884296]
[1754821509765,3.649,4219.4,4219.3,3.21884296]
[1754821510791,3.649,4219.4,4219.3,0.50918158]
[1754821512109,3.649,4219.4,4219.3,0.001]
[1754821513167,6.46950521,4219.4,4219.3,0.001]
[1754821514081,3.649,4219.4,4219.3,0.001]
[1754821514292,6.01900521,4219.4,4219.3,0.001]
[1754821514866,6.46950521,4219.4,4219.3,0.001]
[1754821515702,3.649,4219.4,4219.3,0.001]
[1754821516074,6.46950521,4219.4,4219.3,0.001]
[1754821516300,6.93330521,4219.4,4219.3,0.001]
[1754821517979,3.649,4219.4,4219.3,0.001]
[1754821518395,6.01900521,4219.4,4219.3,0.001]
[1754821519319,6.48910521,4219.4,4219.3,0.001]
[1754821520182,3.649,4219.4,4219.3,0.001]
[1754821521034,0.1184,4219.6,4219.3,0.001]
[1754821521208,3.648,4219.5,4219.3,0.001]
[1754821522377,3.648,4219.4,4219.3,0.001]
[1754821525536,4.1181,4219.4,4219.3,0.001]
[1754821525901,3.648,4219.4,4219.3,0.001]
[1754821528311,4.1181,4219.4,4219.3,0.001]
[1754821528506,3.648,4219.4,4219.3,0.001]
[1754821529334,2.48831287,4219.6,4219.3,0.001]
[1754821529531,6.01794946,4219.5,4219.3,0.001]
[1754821529831,4.1181,4219.5,4219.3,0.001]
[1754821529999,0.4701,4219.4,4219.3,0.001]
[1754821530908,3.648,4219.5,4219.3,0.001]
[1754821531236,0.4701,4219.4,4219.3,0.001]
[1754821532499,3.648,4219.5,4219.3,0.001]
[1754821534133,2.48830139,4219.6,4219.3,0.001]
[1754821534343,3.648,4219.5,4219.3,0.001]
[1754821535441,4.1181,4219.5,4219.3,0.001]
[1754821539151,3.648,4219.4,4219.3,0.001]
[1754821540941,4.1181,4219.4,4219.3,0.001]
[1754821541843,4.1171,4219.4,4219.3,0.001]
[1754821542444,0.1204,4219.6,4219.4,2.37000521]
[1754821542611,0.1204,4219.6,4219.3,0.23822261]
[1754821542612,3.647,4219.5,4219.3,0.23822261]
[1754821542814,3.647,4219.5,4219.4,2.36995737]
[1754821543009,3.647,4219.5,4219.3,0.23822261]
[1754821543010,3.647,4219.5,4219.3,2.60827708]
[1754821543446,0.1204,4219.6,4219.4,2.3699948]
[1754821543751,3.647,4219.5,4219.4,2.3699948]
[1754821544038,0.5905,4219.6,4219.3,2.37105337]
[1754821544246,3.647,4219.5,4219.3,2.37105337]
[1754821544430,0.5905,4219.6,4219.3,2.37105337]
[1754821544836,3.647,4219.5,4219.3,2.37105337]
[1754821545039,3.647,4219.5,4219.4,2.37000521]
[1754821545428,3.647,4219.5,4219.3,2.37104706]
[1754821545846,0.5905,4219.6,4219.4,2.37000521]
[1754821546046,0.5905,4219.6,4219.3,0.001]
[1754821546250,3.647,4219.5,4219.4,2.36999168]
[1754821546549,3.647,4219.5,4219.3,0.001]
[1754821546748,3.647,4219.5,4219.4,2.37000521]
[1754821546949,0.5905,4219.6,4219.5,2.36994904]
[1754821547251,4.2375,4219.6,4219.5,2.36994904]
[1754821547452,3.7674,4219.6,4219.5,2.36994904]
[1754821547754,3.7674,4219.6,4219.4,2.36999427]
[1754821548524,0.1204,4219.6,4219.5,2.36994904]
[1754821548764,3.7674,4219.6,4219.5,2.36994904]
[1754821548957,0.1204,4219.6,4219.5,2.84414337]
[1754821549139,3.649,4219.6,4219.5,2.84414337]
[1754821549457,0.002,4219.6,4219.5,2.84414337]
[1754821549660,0.002,4219.6,4219.5,3.18214337]
[1754821549828,3.648,4219.6,4219.5,3.18374337]
[1754821550155,0.002,4219.6,4219.5,2.84414337]
[1754821550357,0.002,4219.6,4219.5,6.32584286]
[1754821550358,3.648,4219.6,4219.5,6.32584286]
[1754821550557,3.648,4219.6,4219.5,6.30214337]
[1754821551094,0.002,4220.5,4220.4,2.36944365]
[1754821551261,3.648,4220.5,4220.4,2.60638802]
[1754821551552,3.648,4220.5,4220.4,2.72478802]
[1754821553152,0.002,4220.5,4220.4,2.72478802]
[1754821553934,3.648,4220.5,4220.4,3.06438802]
[1754821554148,3.648,4220.5,4220.4,3.06278802]
[1754821556080,3.648,4220.5,4220.4,2.72478802]
[1754821556271,3.648,4220.5,4220.4,6.06278802]
[1754821556474,3.648,4220.5,4220.4,6.06438802]
[1754821556992,3.647,4220.5,4220.4,6.06278802]
[1754821557154,3.647,4220.5,4220.4,6.06438802]
[1754821557475,0.002,4220.5,4220.4,6.06438802]
[1754821557660,1e-08,4220.5,4220.4,6.61438802]
[1754821560446,1e-08,4220.5,4220.4,5.72478802]
[1754821560673,1e-08,4220.5,4220.4,5.60638802]
[1754821560970,1e-08,4220.5,4220.4,6.06438802]
[1754821561174,1e-08,4220.5,4220.4,6.61438802]
[1754821561675,1e-08,4220.6,4220.5,2.91938751]
[1754821561878,1e-08,4220.6,4220.5,7.15737829]
[1754821563488,3.646,4221.7,4221.3,2.36893847]
[1754821563987,3.646,4221.7,4221.3,2.48733847]
[1754821564191,0.4426,4221.4,4221.3,6.30677363]
[1754821564391,0.9314,4221.4,4221.3,6.30677363]
[1754821564593,0.9314,4221.4,4221.3,5.48733847]
[1754821566392,0.9314,4221.4,4221.3,3.1184]
[1754821566563,0.9314,4221.4,4220.5,0.89839078]
[1754821566764,0.002,4221.4,4221.0,0.1184]
[1754821566996,0.9294,4221.3,4221.0,0.1184]
[1754821567181,3.643,4221.2,4220.9,2.36915541]
[1754821567490,0.9294,4221.1,4220.9,2.36915541]
[1754821567996,0.9294,4221.0,4220.9,2.36915541]
[1754821568696,0.9294,4221.0,4220.8,2.36921553]
[1754821568996,0.9294,4220.9,4220.8,2.36921553]
[1754821572304,0.9294,4220.9,4220.8,2.85490916]
[1754821572890,0.9294,4220.9,4220.8,2.36921553]
[1754821573499,0.9294,4220.9,4220.7,0.1184]
[1754821573797,0.9294,4220.8,4220.7,0.1184]
[1754821574799,0.9294,4220.8,4220.7,2.48767523]
[1754821575270,0.9294,4220.8,4220.7,0.1184]
[1754821575465,0.9294,4220.8,4220.7,2.48767523]
[1754821578021,0.4406,4220.8,4220.7,2.48767523]
[1754821578183,0.4406,4220.8,4220.7,3.27337988]
[1754821584891,0.8909,4220.8,4220.7,3.27337988]
[1754821585098,0.8909,4220.8,4220.7,2.48767523]
[1754821586613,0.4406,4220.8,4220.7,2.48767523]
[1754821587816,0.1184,4221.3,4220.8,2.36916424]
[1754821587994,4.0792,4221.2,4221.1,2.36905072]
[1754821588518,4.5295,4221.2,4221.1,2.36905072]
[1754821589105,4.0792,4221.2,4221.1,2.36905072]
[1754821590786,0.002,4221.4,4221.3,2.36893847]
[1754821591012,0.002,4221.4,4221.3,2.39262785]
[1754821591333,0.002,4221.4,4221.3,5.70693847]
[1754821591626,0.002,4221.4,4221.3,5.70853847]
[1754821591988,0.002,4221.4,4221.3,5.70693847]
[1754821592195,0.002,4221.4,4221.3,6.30703228]
[1754821598534,0.8895,4221.4,4221.3,6.30703228]
[1754821599032,0.8895,4221.4,4221.3,2.36893847]
[1754821599596,0.8895,4221.4,4221.1,0.1184]
[1754821599798,0.8875,4221.3,4221.2,2.36894558]